[Event "Titled Tuesday Blitz February 22 Late 2022"]
[White "Fikh, Anthony"]
[Black "Bon, Michael"]
[WhiteFideId "3224562"]
[BlackFideId "620696"]
[WhiteElo "1931"]
[BlackElo "2382"]
[Result "0-1"]
[Round "03"]
[TimeControl "180+1"]
[Date "2022.02.23"]
[WhiteClock "0:00:15"]
[BlackClock "0:00:04"]

1. Nf3 {[%clk 0:03:00]}  Nc6 {[%clk 0:02:58]} 2. d4 {[%clk 0:02:59]}  d5 {[%clk 0:02:58]} 3. e3 {[%clk 0:02:59]}  Bg4 {[%clk 0:02:57]} 4. Bb5 {[%clk 0:02:59]}  e6 {[%clk 0:02:57]} 5. Nbd2 {[%clk 0:02:57]}  Ne7 {[%clk 0:02:56]} 6. O-O {[%clk 0:02:56]}  a6 {[%clk 0:02:56]} 7. Be2 {[%clk 0:02:52]}  g6 {[%clk 0:02:45]} 8. c4 {[%clk 0:02:51]}  Bg7 {[%clk 0:02:45]} 9. h3 {[%clk 0:02:48]}  Bxf3 {[%clk 0:02:44]} 10. Nxf3 {[%clk 0:02:49]}  O-O {[%clk 0:02:43]} 11. a3 {[%clk 0:02:44]}  e5 {[%clk 0:02:43]} 12. dxe5 {[%clk 0:02:42]}  Nxe5 {[%clk 0:02:41]} 13. Nxe5 {[%clk 0:02:41]}  Bxe5 {[%clk 0:02:41]} 14. Qc2 {[%clk 0:02:34]}  c6 {[%clk 0:02:37]} 15. Rd1 {[%clk 0:02:32]}  Qb6 {[%clk 0:02:30]} 16. c5 {[%clk 0:02:26]}  Qc7 {[%clk 0:02:29]} 17. Bd2 {[%clk 0:02:25]}  Rfe8 {[%clk 0:02:21]} 18. Bc3 {[%clk 0:02:25]}  Nf5 {[%clk 0:02:14]} 19. Rac1 {[%clk 0:02:17]}  Rad8 {[%clk 0:02:13]} 20. Bd3 {[%clk 0:02:10]}  Nh4 {[%clk 0:02:01]} 21. Bd4 {[%clk 0:02:08]}  Bxd4 {[%clk 0:01:58]} 22. exd4 {[%clk 0:02:09]}  Qf4 {[%clk 0:01:57]} 23. Bf1 {[%clk 0:02:06]}  Re4 {[%clk 0:01:38]} 24. Qd2 {[%clk 0:02:05]}  Qf6 {[%clk 0:01:24]} 25. Rc3 {[%clk 0:02:03]}  Rde8 {[%clk 0:01:23]} 26. Rb3 {[%clk 0:01:48]}  R8e7 {[%clk 0:01:13]} 27. Re3 {[%clk 0:01:37]}  Nf5 {[%clk 0:01:08]} 28. Rxe4 {[%clk 0:01:36]}  Rxe4 {[%clk 0:01:08]} 29. Qb4 {[%clk 0:01:33]}  Re7 {[%clk 0:00:47]} 30. Qc3 {[%clk 0:01:20]}  h5 {[%clk 0:00:47]} 31. a4 {[%clk 0:00:59]}  Re4 {[%clk 0:00:39]} 32. Qb4 {[%clk 0:00:58]}  Qe7 {[%clk 0:00:39]} 33. a5 {[%clk 0:00:39]}  g5 {[%clk 0:00:33]} 34. Rd3 {[%clk 0:00:27]}  Re1 {[%clk 0:00:24]} 35. Qd2 {[%clk 0:00:19]}  f6 {[%clk 0:00:19]} 36. Kh1 {[%clk 0:00:18]}  Qe4 {[%clk 0:00:15]} 37. Kg1 {[%clk 0:00:18]}  Kg7 {[%clk 0:00:13]} 38. f3 {[%clk 0:00:17]}  Qe6 {[%clk 0:00:08]} 39. Kf2 {[%clk 0:00:17]}  Ra1 {[%clk 0:00:06]} 40. g4 {[%clk 0:00:16]}  hxg4 {[%clk 0:00:05]} 41. hxg4 {[%clk 0:00:16]}  Nh4 {[%clk 0:00:04]} 42. Re3 {[%clk 0:00:17]}  Qd7 {[%clk 0:00:04]} 43. Qe2 {[%clk 0:00:17]}  Kf7 {[%clk 0:00:04]} 44. f4 {[%clk 0:00:18]}  Qc7 {[%clk 0:00:03]} 45. fxg5 {[%clk 0:00:16]}  Qh2+ {[%clk 0:00:03]} 46. Bg2 {[%clk 0:00:15]}  Qxg2# {[%clk 0:00:04]} 0-1


[Site "https://www.chess.com"]

[Event "Titled Tuesday Blitz February 22 Late 2022"]
[White "Garriga Cazorla, Pere"]
[Black "Piesik, Piotr"]
[WhiteFideId "32011601"]
[BlackFideId "1136194"]
[WhiteElo "2458"]
[BlackElo "2232"]
[Result "0-1"]
[Round "03"]
[TimeControl "180+1"]
[Date "2022.02.23"]
[WhiteClock "0:00:09"]
[BlackClock "0:00:58"]

1. d4 {[%clk 0:03:00]}  c5 {[%clk 0:02:51]} 2. d5 {[%clk 0:03:00]}  e5 {[%clk 0:02:51]} 3. e4 {[%clk 0:03:01]}  d6 {[%clk 0:02:52]} 4. Nc3 {[%clk 0:03:01]}  Be7 {[%clk 0:02:49]} 5. f4 {[%clk 0:03:01]}  exf4 {[%clk 0:02:48]} 6. Bxf4 {[%clk 0:03:02]}  Bg5 {[%clk 0:02:48]} 7. Bb5+ {[%clk 0:03:02]}  Kf8 {[%clk 0:02:46]} 8. Bg3 {[%clk 0:03:01]}  Bh4 {[%clk 0:02:46]} 9. Nf3 {[%clk 0:02:53]}  Bxg3+ {[%clk 0:02:46]} 10. hxg3 {[%clk 0:02:54]}  a6 {[%clk 0:02:46]} 11. Be2 {[%clk 0:02:52]}  Nd7 {[%clk 0:02:45]} 12. O-O {[%clk 0:02:52]}  Ngf6 {[%clk 0:02:44]} 13. e5 {[%clk 0:02:47]}  Nxe5 {[%clk 0:02:43]} 14. Nxe5 {[%clk 0:02:47]}  dxe5 {[%clk 0:02:44]} 15. d6 {[%clk 0:02:46]}  Be6 {[%clk 0:02:43]} 16. Qd2 {[%clk 0:02:47]}  Qb6 {[%clk 0:02:40]} 17. Rad1 {[%clk 0:02:46]}  Rd8 {[%clk 0:02:39]} 18. Kh2 {[%clk 0:02:40]}  h5 {[%clk 0:02:24]} 19. Qg5 {[%clk 0:02:20]}  Rh6 {[%clk 0:02:22]} 20. a4 {[%clk 0:02:10]}  Rxd6 {[%clk 0:02:19]} 21. a5 {[%clk 0:02:06]}  Qd8 {[%clk 0:02:14]} 22. Qe3 {[%clk 0:01:38]}  Rxd1 {[%clk 0:01:53]} 23. Rxd1 {[%clk 0:01:36]}  Qxa5 {[%clk 0:01:53]} 24. Qxe5 {[%clk 0:01:36]}  Kg8 {[%clk 0:01:53]} 25. Qb8+ {[%clk 0:01:27]}  Kh7 {[%clk 0:01:52]} 26. Rd8 {[%clk 0:01:21]}  Ng4+ {[%clk 0:01:48]} 27. Kg1 {[%clk 0:01:21]}  Qa1+ {[%clk 0:01:42]} 28. Nd1 {[%clk 0:01:21]}  c4 {[%clk 0:01:30]} 29. Rh8+ {[%clk 0:01:04]}  Kg6 {[%clk 0:01:30]} 30. Rg8 {[%clk 0:01:04]}  Qa5 {[%clk 0:01:25]} 31. Bxg4 {[%clk 0:00:31]}  hxg4 {[%clk 0:01:13]} 32. Nc3 {[%clk 0:00:16]}  Qb6+ {[%clk 0:01:03]} 33. Kf1 {[%clk 0:00:16]}  Rh1+ {[%clk 0:01:03]} 34. Ke2 {[%clk 0:00:16]}  Qxb2 {[%clk 0:01:01]} 35. Rxg7+ {[%clk 0:00:11]}  Kxg7 {[%clk 0:01:02]} 36. Qe5+ {[%clk 0:00:12]}  Kh7 {[%clk 0:00:59]} 37. Qe4+ {[%clk 0:00:11]}  Kg8 {[%clk 0:00:59]} 38. Kd2 {[%clk 0:00:09]}  Qc1+ {[%clk 0:00:58]} 39. Ke2 {[%clk 0:00:09]}  Re1+ {[%clk 0:00:58]} 0-1


[Site "https://www.chess.com"]

[Event "Titled Tuesday Blitz February 22 Late 2022"]
[White "Guliyev, Namig"]
[Black "Kollars, Dmitrij"]
[WhiteFideId "13400363"]
[BlackFideId "12909572"]
[WhiteElo "2487"]
[BlackElo "2584"]
[Result "0-1"]
[Round "03"]
[TimeControl "180+1"]
[Date "2022.02.22"]
[WhiteClock "0:00:25"]
[BlackClock "0:01:50"]

1. e4 {[%clk 0:03:00]}  c5 {[%clk 0:02:59]} 2. Nf3 {[%clk 0:03:01]}  d6 {[%clk 0:02:59]} 3. Bb5+ {[%clk 0:03:01]}  Bd7 {[%clk 0:02:57]} 4. Bxd7+ {[%clk 0:02:59]}  Qxd7 {[%clk 0:02:58]} 5. O-O {[%clk 0:02:59]}  Nf6 {[%clk 0:02:56]} 6. Qe2 {[%clk 0:03:00]}  Nc6 {[%clk 0:02:52]} 7. c3 {[%clk 0:03:00]}  e6 {[%clk 0:02:50]} 8. d4 {[%clk 0:03:00]}  cxd4 {[%clk 0:02:50]} 9. cxd4 {[%clk 0:03:01]}  d5 {[%clk 0:02:50]} 10. e5 {[%clk 0:03:01]}  Ne4 {[%clk 0:02:51]} 11. Nbd2 {[%clk 0:03:02]}  Nxd2 {[%clk 0:02:49]} 12. Bxd2 {[%clk 0:03:03]}  Bb4 {[%clk 0:02:48]} 13. Rac1 {[%clk 0:02:55]}  Bxd2 {[%clk 0:02:37]} 14. Qxd2 {[%clk 0:02:55]}  O-O {[%clk 0:02:38]} 15. b4 {[%clk 0:02:49]}  Rfc8 {[%clk 0:02:37]} 16. h4 {[%clk 0:02:20]}  Ne7 {[%clk 0:02:34]} 17. h5 {[%clk 0:02:13]}  h6 {[%clk 0:02:33]} 18. Rxc8+ {[%clk 0:01:52]}  Rxc8 {[%clk 0:02:34]} 19. Rc1 {[%clk 0:01:51]}  Rc4 {[%clk 0:02:34]} 20. a3 {[%clk 0:01:50]}  Qc6 {[%clk 0:02:32]} 21. Re1 {[%clk 0:01:43]}  Qa4 {[%clk 0:02:21]} 22. g4 {[%clk 0:00:50]}  Qxa3 {[%clk 0:02:17]} 23. Kg2 {[%clk 0:00:48]}  Qxb4 {[%clk 0:01:57]} 24. Qf4 {[%clk 0:00:48]}  Nc6 {[%clk 0:01:57]} 25. g5 {[%clk 0:00:44]}  Nxd4 {[%clk 0:01:57]} 26. g6 {[%clk 0:00:26]}  fxg6 {[%clk 0:01:50]} 27. hxg6 {[%clk 0:00:25]}  Nf5 {[%clk 0:01:50]} 0-1


[Site "https://www.chess.com"]

[Event "Titled Tuesday Blitz February 22 Late 2022"]
[White "Hambleton, Aman"]
[Black "Koutlas, Nikolaos"]
[WhiteFideId "2606577"]
[BlackFideId "25827138"]
[WhiteElo "2552"]
[BlackElo "1610"]
[Result "1-0"]
[Round "03"]
[TimeControl "180+1"]
[Date "2022.02.23"]
[WhiteClock "0:00:02"]
[BlackClock "0:00:04"]

1. d4 {[%clk 0:03:00]}  Nf6 {[%clk 0:02:57]} 2. Bf4 {[%clk 0:03:00]}  d5 {[%clk 0:02:56]} 3. e3 {[%clk 0:02:59]}  c5 {[%clk 0:02:54]} 4. c3 {[%clk 0:02:36]}  Nc6 {[%clk 0:02:52]} 5. Nd2 {[%clk 0:02:36]}  Bf5 {[%clk 0:02:43]} 6. Qb3 {[%clk 0:02:36]}  Qd7 {[%clk 0:02:38]} 7. Ngf3 {[%clk 0:02:22]}  c4 {[%clk 0:02:32]} 8. Qd1 {[%clk 0:02:21]}  e6 {[%clk 0:02:26]} 9. Nh4 {[%clk 0:02:10]}  b5 {[%clk 0:02:22]} 10. Nxf5 {[%clk 0:02:01]}  exf5 {[%clk 0:02:22]} 11. Be2 {[%clk 0:02:02]}  Bd6 {[%clk 0:02:12]} 12. O-O {[%clk 0:01:47]}  O-O {[%clk 0:02:05]} 13. b3 {[%clk 0:01:34]}  Bxf4 {[%clk 0:01:01]} 14. exf4 {[%clk 0:01:34]}  Rab8 {[%clk 0:00:44]} 15. a4 {[%clk 0:01:01]}  b4 {[%clk 0:00:34]} 16. cxb4 {[%clk 0:01:01]}  c3 {[%clk 0:00:33]} 17. Nb1 {[%clk 0:01:01]}  Rxb4 {[%clk 0:00:33]} 18. Nxc3 {[%clk 0:01:01]}  Nxd4 {[%clk 0:00:28]} 19. Rb1 {[%clk 0:00:48]}  Ne4 {[%clk 0:00:23]} 20. Na2 {[%clk 0:00:37]}  Rfb8 {[%clk 0:00:10]} 21. Nxb4 {[%clk 0:00:35]}  Nc3 {[%clk 0:00:10]} 22. Bb5 {[%clk 0:00:29]}  Rxb5 {[%clk 0:00:05]} 23. axb5 {[%clk 0:00:11]}  Nxd1 {[%clk 0:00:05]} 24. Rbxd1 {[%clk 0:00:06]}  Ne2+ {[%clk 0:00:06]} 25. Kh1 {[%clk 0:00:06]}  Nc3 {[%clk 0:00:05]} 26. Rd2 {[%clk 0:00:03]}  Qxb5 {[%clk 0:00:05]} 27. Re1 {[%clk 0:00:03]}  f6 {[%clk 0:00:03]} 28. Nc2 {[%clk 0:00:02]}  Ne4 {[%clk 0:00:03]} 29. Rde2 {[%clk 0:00:02]}  d4 {[%clk 0:00:03]} 30. Nxd4 {[%clk 0:00:01]}  Qd3 {[%clk 0:00:04]} 31. Nf3 {[%clk 0:00:01]}  Qxb3 {[%clk 0:00:04]} 32. Kg1 {[%clk 0:00:02]}  Qd5 {[%clk 0:00:04]} 33. Re3 {[%clk 0:00:02]}  Qd4 {[%clk 0:00:04]} 34. Nxd4 {[%clk 0:00:02]} 1-0


[Site "https://www.chess.com"]

[Event "Titled Tuesday Blitz February 22 Late 2022"]
[White "Hoffmann, Asa"]
[Black "Vargas Pereda, Jesus Manue"]
[WhiteFideId "2001470"]
[BlackFideId "5115710"]
[WhiteElo "2117"]
[BlackElo "1747"]
[Result "1-0"]
[Round "03"]
[TimeControl "180+1"]
[Date "2022.02.23"]
[WhiteClock "0:00:58"]
[BlackClock "0:00:10"]

1. d4 {[%clk 0:02:59]}  Nf6 {[%clk 0:02:59]} 2. Bg5 {[%clk 0:02:55]}  Ne4 {[%clk 0:02:58]} 3. Bf4 {[%clk 0:02:55]}  c5 {[%clk 0:02:58]} 4. f3 {[%clk 0:02:54]}  Qa5+ {[%clk 0:02:58]} 5. c3 {[%clk 0:02:54]}  Nf6 {[%clk 0:02:58]} 6. d5 {[%clk 0:02:54]}  d6 {[%clk 0:02:54]} 7. e4 {[%clk 0:02:54]}  g6 {[%clk 0:02:54]} 8. Qd2 {[%clk 0:02:53]}  Bg7 {[%clk 0:02:53]} 9. Na3 {[%clk 0:02:53]}  O-O {[%clk 0:02:50]} 10. Bh6 {[%clk 0:02:53]}  a6 {[%clk 0:02:48]} 11. h4 {[%clk 0:02:52]}  b5 {[%clk 0:02:41]} 12. h5 {[%clk 0:02:51]}  Nbd7 {[%clk 0:02:23]} 13. hxg6 {[%clk 0:02:50]}  fxg6 {[%clk 0:02:23]} 14. Bxg7 {[%clk 0:02:49]}  Kxg7 {[%clk 0:02:23]} 15. Qh6+ {[%clk 0:02:48]}  Kg8 {[%clk 0:02:23]} 16. Nh3 {[%clk 0:02:48]}  Ne5 {[%clk 0:02:17]} 17. Ng5 {[%clk 0:02:44]}  Nf7 {[%clk 0:02:06]} 18. Nxf7 {[%clk 0:02:30]}  Rxf7 {[%clk 0:02:06]} 19. Be2 {[%clk 0:02:09]}  Bd7 {[%clk 0:01:54]} 20. O-O {[%clk 0:02:03]}  Raf8 {[%clk 0:01:45]} 21. Qe3 {[%clk 0:01:58]}  e6 {[%clk 0:01:26]} 22. dxe6 {[%clk 0:01:55]}  Bxe6 {[%clk 0:01:26]} 23. Rad1 {[%clk 0:01:54]}  d5 {[%clk 0:01:14]} 24. Qxc5 {[%clk 0:01:48]}  dxe4 {[%clk 0:01:10]} 25. f4 {[%clk 0:01:47]}  Bxa2 {[%clk 0:01:02]} 26. f5 {[%clk 0:01:40]}  Qc7 {[%clk 0:00:53]} 27. Qxc7 {[%clk 0:01:36]}  Rxc7 {[%clk 0:00:54]} 28. fxg6 {[%clk 0:01:34]}  hxg6 {[%clk 0:00:53]} 29. Ra1 {[%clk 0:01:29]}  Bd5 {[%clk 0:00:42]} 30. Nc2 {[%clk 0:01:28]}  Bc4 {[%clk 0:00:38]} 31. Bxc4+ {[%clk 0:01:25]}  bxc4 {[%clk 0:00:33]} 32. Rxa6 {[%clk 0:01:24]}  Kg7 {[%clk 0:00:31]} 33. Ne3 {[%clk 0:01:24]}  Rb7 {[%clk 0:00:30]} 34. Nxc4 {[%clk 0:01:21]}  Ng4 {[%clk 0:00:21]} 35. Rxf8 {[%clk 0:01:16]}  Kxf8 {[%clk 0:00:21]} 36. Rxg6 {[%clk 0:01:16]}  Rg7 {[%clk 0:00:16]} 37. Rxg7 {[%clk 0:01:12]}  Kxg7 {[%clk 0:00:16]} 38. Kf1 {[%clk 0:01:12]}  Kf6 {[%clk 0:00:15]} 39. Ke2 {[%clk 0:01:12]}  Ke6 {[%clk 0:00:14]} 40. b4 {[%clk 0:01:11]}  Kd7 {[%clk 0:00:09]} 41. Nd2 {[%clk 0:01:09]}  Nf6 {[%clk 0:00:09]} 42. Ke3 {[%clk 0:01:08]}  Kc6 {[%clk 0:00:09]} 43. Nxe4 {[%clk 0:01:08]}  Nd5+ {[%clk 0:00:08]} 44. Kd4 {[%clk 0:01:08]}  Nf4 {[%clk 0:00:08]} 45. g4 {[%clk 0:01:07]}  Ng6 {[%clk 0:00:08]} 46. g5 {[%clk 0:01:07]}  Kb7 {[%clk 0:00:08]} 47. c4 {[%clk 0:01:07]}  Kc6 {[%clk 0:00:08]} 48. b5+ {[%clk 0:01:07]}  Kb7 {[%clk 0:00:08]} 49. Kd5 {[%clk 0:01:07]}  Kc7 {[%clk 0:00:08]} 50. c5 {[%clk 0:01:07]}  Nf4+ {[%clk 0:00:08]} 51. Ke5 {[%clk 0:01:06]}  Nd3+ {[%clk 0:00:08]} 52. Kd4 {[%clk 0:01:06]}  Nf4 {[%clk 0:00:08]} 53. b6+ {[%clk 0:01:06]}  Kc6 {[%clk 0:00:08]} 54. Nf6 {[%clk 0:01:03]}  Ne6+ {[%clk 0:00:08]} 55. Kc4 {[%clk 0:01:03]}  Nxg5 {[%clk 0:00:09]} 56. Ng8 {[%clk 0:00:59]}  Ne6 {[%clk 0:00:09]} 57. Ne7+ {[%clk 0:00:58]}  Kb7 {[%clk 0:00:09]} 58. Kd5 {[%clk 0:00:58]}  Nxc5 {[%clk 0:00:09]} 59. Kxc5 {[%clk 0:00:58]}  Kb8 {[%clk 0:00:09]} 60. Kc6 {[%clk 0:00:58]}  Ka8 {[%clk 0:00:09]} 61. Nd5 {[%clk 0:00:58]}  Kb8 {[%clk 0:00:10]} 62. b7 {[%clk 0:00:58]}  Ka7 {[%clk 0:00:10]} 63. Kc7 {[%clk 0:00:58]} 1-0


[Site "https://www.chess.com"]

[Event "Titled Tuesday Blitz February 22 Late 2022"]
[White "Janaszak, Dawid"]
[Black "Escudero Donoso, Felipe"]
[WhiteFideId "1119206"]
[BlackFideId "3410595"]
[WhiteElo "2199"]
[BlackElo "2184"]
[Result "1-0"]
[Round "03"]
[TimeControl "180+1"]
[Date "2022.02.23"]
[WhiteClock "0:00:28"]
[BlackClock "0:00:01"]

1. e4 {[%clk 0:03:00]}  c5 {[%clk 0:02:59]} 2. Nc3 {[%clk 0:03:00]}  e6 {[%clk 0:02:57]} 3. Nge2 {[%clk 0:02:58]}  d5 {[%clk 0:02:55]} 4. d4 {[%clk 0:02:51]}  cxd4 {[%clk 0:02:36]} 5. Nxd4 {[%clk 0:02:47]}  Bb4 {[%clk 0:02:25]} 6. exd5 {[%clk 0:02:40]}  exd5 {[%clk 0:02:11]} 7. Bb5+ {[%clk 0:02:37]}  Bd7 {[%clk 0:02:09]} 8. O-O {[%clk 0:02:36]}  Ne7 {[%clk 0:02:04]} 9. Bg5 {[%clk 0:02:20]}  f6 {[%clk 0:01:53]} 10. Ne6 {[%clk 0:02:19]}  Qb6 {[%clk 0:01:34]} 11. Nxg7+ {[%clk 0:02:08]}  Kf7 {[%clk 0:01:31]} 12. Bxd7 {[%clk 0:01:44]}  Kxg7 {[%clk 0:01:19]} 13. Be3 {[%clk 0:01:15]}  Qc7 {[%clk 0:01:05]} 14. Qg4+ {[%clk 0:01:07]}  Ng6 {[%clk 0:00:29]} 15. Bf5 {[%clk 0:01:07]}  Bxc3 {[%clk 0:00:26]} 16. bxc3 {[%clk 0:01:08]}  Nc6 {[%clk 0:00:21]} 17. h4 {[%clk 0:01:04]}  Ne5 {[%clk 0:00:19]} 18. Qg3 {[%clk 0:01:04]}  Kf7 {[%clk 0:00:11]} 19. Rad1 {[%clk 0:01:01]}  Rad8 {[%clk 0:00:10]} 20. h5 {[%clk 0:00:58]}  Nf8 {[%clk 0:00:10]} 21. Bd4 {[%clk 0:00:50]}  Rg8 {[%clk 0:00:10]} 22. Qh3 {[%clk 0:00:50]}  Nfd7 {[%clk 0:00:07]} 23. Be6+ {[%clk 0:00:49]}  Ke7 {[%clk 0:00:08]} 24. Bxg8 {[%clk 0:00:48]}  Rxg8 {[%clk 0:00:08]} 25. Rfe1 {[%clk 0:00:48]}  Kf7 {[%clk 0:00:09]} 26. f4 {[%clk 0:00:47]}  Ng4 {[%clk 0:00:08]} 27. Rf1 {[%clk 0:00:38]}  f5 {[%clk 0:00:06]} 28. Qd3 {[%clk 0:00:37]}  Ndf6 {[%clk 0:00:03]} 29. Qxf5 {[%clk 0:00:35]}  Qe7 {[%clk 0:00:02]} 30. Rde1 {[%clk 0:00:33]}  Qd8 {[%clk 0:00:01]} 31. Qe6+ {[%clk 0:00:33]}  Kg7 {[%clk 0:00:01]} 32. Qxg4+ {[%clk 0:00:30]}  Kh8 {[%clk 0:00:01]} 33. Qe6 {[%clk 0:00:28]} 1-0


[Site "https://www.chess.com"]

[Event "Titled Tuesday Blitz February 22 Late 2022"]
[White "Kirillov, Dmitry"]
[Black "Desideri, Ricardo Maruchi"]
[WhiteFideId "34180572"]
[BlackFideId "2110440"]
[WhiteElo "2076"]
[BlackElo "1945"]
[Result "1-0"]
[Round "03"]
[TimeControl "180+1"]
[Date "2022.02.23"]
[WhiteClock "0:00:18"]
[BlackClock "0:00:01"]

1. d4 {[%clk 0:03:00]}  Nf6 {[%clk 0:02:56]} 2. c4 {[%clk 0:03:01]}  c5 {[%clk 0:02:56]} 3. d5 {[%clk 0:03:01]}  e6 {[%clk 0:02:56]} 4. Nc3 {[%clk 0:03:01]}  exd5 {[%clk 0:02:57]} 5. cxd5 {[%clk 0:03:02]}  d6 {[%clk 0:02:57]} 6. e4 {[%clk 0:03:02]}  g6 {[%clk 0:02:57]} 7. f4 {[%clk 0:03:03]}  a6 {[%clk 0:02:54]} 8. Nf3 {[%clk 0:02:51]}  Bg7 {[%clk 0:02:53]} 9. e5 {[%clk 0:02:45]}  dxe5 {[%clk 0:02:51]} 10. fxe5 {[%clk 0:02:46]}  Ng4 {[%clk 0:02:48]} 11. Bf4 {[%clk 0:02:43]}  O-O {[%clk 0:02:38]} 12. Qe2 {[%clk 0:02:06]}  Re8 {[%clk 0:02:33]} 13. O-O-O {[%clk 0:02:00]}  b5 {[%clk 0:02:22]} 14. Kb1 {[%clk 0:01:39]}  Bf5+ {[%clk 0:02:17]} 15. Ka1 {[%clk 0:01:38]}  b4 {[%clk 0:02:15]} 16. Na4 {[%clk 0:01:24]}  Qa5 {[%clk 0:02:11]} 17. h3 {[%clk 0:01:14]}  Qxa4 {[%clk 0:02:08]} 18. hxg4 {[%clk 0:01:13]}  b3 {[%clk 0:02:03]} 19. a3 {[%clk 0:01:11]}  Bc2 {[%clk 0:02:03]} 20. Rc1 {[%clk 0:01:05]}  f6 {[%clk 0:01:55]} 21. Bh6 {[%clk 0:00:58]}  Bh8 {[%clk 0:01:47]} 22. e6 {[%clk 0:00:36]}  f5 {[%clk 0:01:43]} 23. Ne5 {[%clk 0:00:36]}  Qd4 {[%clk 0:01:33]} 24. Nc4 {[%clk 0:00:36]}  f4 {[%clk 0:01:04]} 25. d6 {[%clk 0:00:30]}  Nc6 {[%clk 0:00:49]} 26. d7 {[%clk 0:00:30]}  Na5 {[%clk 0:00:37]} 27. dxe8=Q+ {[%clk 0:00:28]}  Rxe8 {[%clk 0:00:36]} 28. Rxc2 {[%clk 0:00:22]}  bxc2 {[%clk 0:00:28]} 29. Qxc2 {[%clk 0:00:23]}  Nxc4 {[%clk 0:00:18]} 30. Bxc4 {[%clk 0:00:24]}  Re7 {[%clk 0:00:17]} 31. Bg5 {[%clk 0:00:24]}  Bf6 {[%clk 0:00:13]} 32. Bxf6 {[%clk 0:00:23]}  Qxf6 {[%clk 0:00:13]} 33. Qe4 {[%clk 0:00:24]}  Kg7 {[%clk 0:00:12]} 34. Rd1 {[%clk 0:00:22]}  g5 {[%clk 0:00:10]} 35. Rd7 {[%clk 0:00:22]}  Kf8 {[%clk 0:00:09]} 36. Qd5 {[%clk 0:00:20]}  Qd4 {[%clk 0:00:01]} 37. Rd8+ {[%clk 0:00:18]}  Kg7 {[%clk 0:00:01]} 38. Qxg5# {[%clk 0:00:18]} 1-0


[Site "https://www.chess.com"]

[Event "Titled Tuesday Blitz February 22 Late 2022"]
[White "Klukin, Kirill"]
[Black "Jobava, Baadur"]
[WhiteFideId "24199273"]
[BlackFideId "13601520"]
[WhiteElo "2324"]
[BlackElo "2617"]
[Result "0-1"]
[Round "03"]
[TimeControl "180+1"]
[Date "2022.02.22"]
[WhiteClock "0:00:06"]
[BlackClock "0:01:13"]

1. c4 {[%clk 0:03:00]}  c6 {[%clk 0:02:59]} 2. Nf3 {[%clk 0:02:59]}  d5 {[%clk 0:03:00]} 3. e3 {[%clk 0:03:00]}  Nf6 {[%clk 0:03:00]} 4. b3 {[%clk 0:03:00]}  Bg4 {[%clk 0:03:00]} 5. Bb2 {[%clk 0:03:00]}  e6 {[%clk 0:03:00]} 6. Be2 {[%clk 0:02:59]}  Nbd7 {[%clk 0:03:00]} 7. d3 {[%clk 0:02:59]}  a5 {[%clk 0:02:57]} 8. a3 {[%clk 0:02:58]}  Bd6 {[%clk 0:02:58]} 9. Nbd2 {[%clk 0:02:58]}  O-O {[%clk 0:02:57]} 10. h3 {[%clk 0:02:58]}  Bxf3 {[%clk 0:02:57]} 11. Nxf3 {[%clk 0:02:55]}  Qe7 {[%clk 0:02:57]} 12. O-O {[%clk 0:02:55]}  Rfc8 {[%clk 0:02:55]} 13. Qc2 {[%clk 0:02:50]}  h6 {[%clk 0:02:52]} 14. Rfc1 {[%clk 0:02:34]}  Qf8 {[%clk 0:02:49]} 15. e4 {[%clk 0:02:29]}  dxe4 {[%clk 0:02:46]} 16. dxe4 {[%clk 0:02:30]}  e5 {[%clk 0:02:45]} 17. Nh4 {[%clk 0:02:30]}  g6 {[%clk 0:02:44]} 18. Bg4 {[%clk 0:02:20]}  Rd8 {[%clk 0:02:42]} 19. Bxd7 {[%clk 0:02:16]}  Nxd7 {[%clk 0:02:43]} 20. Rd1 {[%clk 0:02:11]}  Qe7 {[%clk 0:02:41]} 21. g3 {[%clk 0:02:09]}  Nf8 {[%clk 0:02:40]} 22. Kg2 {[%clk 0:02:05]}  Ne6 {[%clk 0:02:39]} 23. Nf3 {[%clk 0:02:06]}  f6 {[%clk 0:02:37]} 24. Nh4 {[%clk 0:01:56]}  Kg7 {[%clk 0:02:34]} 25. Qe2 {[%clk 0:01:57]}  h5 {[%clk 0:02:31]} 26. Nf3 {[%clk 0:01:48]}  Bc5 {[%clk 0:02:30]} 27. Rxd8 {[%clk 0:01:42]}  Rxd8 {[%clk 0:02:30]} 28. Rd1 {[%clk 0:01:39]}  Re8 {[%clk 0:02:21]} 29. a4 {[%clk 0:01:35]}  Rd8 {[%clk 0:02:18]} 30. Bc3 {[%clk 0:01:32]}  Bb4 {[%clk 0:02:17]} 31. Rxd8 {[%clk 0:01:31]}  Qxd8 {[%clk 0:02:16]} 32. Bxb4 {[%clk 0:01:30]}  axb4 {[%clk 0:02:17]} 33. c5 {[%clk 0:01:19]}  Nxc5 {[%clk 0:02:04]} 34. Qc4 {[%clk 0:01:18]}  Na6 {[%clk 0:01:56]} 35. Qe6 {[%clk 0:00:54]}  Nc7 {[%clk 0:01:56]} 36. Qc4 {[%clk 0:00:53]}  Qd6 {[%clk 0:01:56]} 37. Ne1 {[%clk 0:00:50]}  Qd4 {[%clk 0:01:50]} 38. Qxd4 {[%clk 0:00:39]}  exd4 {[%clk 0:01:51]} 39. Nd3 {[%clk 0:00:39]}  Na6 {[%clk 0:01:51]} 40. f4 {[%clk 0:00:39]}  Kf7 {[%clk 0:01:51]} 41. Kf3 {[%clk 0:00:39]}  Ke6 {[%clk 0:01:50]} 42. g4 {[%clk 0:00:40]}  h4 {[%clk 0:01:50]} 43. f5+ {[%clk 0:00:35]}  gxf5 {[%clk 0:01:49]} 44. exf5+ {[%clk 0:00:35]}  Kd5 {[%clk 0:01:49]} 45. Nf4+ {[%clk 0:00:35]}  Kd6 {[%clk 0:01:49]} 46. Nd3 {[%clk 0:00:32]}  c5 {[%clk 0:01:42]} 47. Ke4 {[%clk 0:00:32]}  Nc7 {[%clk 0:01:42]} 48. Nb2 {[%clk 0:00:31]}  b5 {[%clk 0:01:30]} 49. axb5 {[%clk 0:00:31]}  Nxb5 {[%clk 0:01:31]} 50. Nc4+ {[%clk 0:00:32]}  Kc6 {[%clk 0:01:30]} 51. Na5+ {[%clk 0:00:32]}  Kd7 {[%clk 0:01:27]} 52. Kd5 {[%clk 0:00:22]}  Na3 {[%clk 0:01:25]} 53. Nb7 {[%clk 0:00:19]}  c4 {[%clk 0:01:24]} 54. bxc4 {[%clk 0:00:16]}  Nc2 {[%clk 0:01:20]} 55. Nc5+ {[%clk 0:00:15]}  Ke7 {[%clk 0:01:18]} 56. Ke4 {[%clk 0:00:15]}  Kd6 {[%clk 0:01:15]} 57. Nb3 {[%clk 0:00:15]}  Ne3 {[%clk 0:01:14]} 58. Kxd4 {[%clk 0:00:14]}  Nxg4 {[%clk 0:01:15]} 59. Nc5 {[%clk 0:00:08]}  Nf2 {[%clk 0:01:13]} 60. Nd3 {[%clk 0:00:06]}  Nxd3 {[%clk 0:01:13]} 0-1


[Site "https://www.chess.com"]